bitfinex/quotes_SOLUSD_20241005
["timestamp","ask_amount","ask_price","bid_price","bid_amount"]
[1728144572132,510.99656035,142.65,142.63,7.011]
[1728144578945,510.99656035,142.65,142.62,17.5282]
[1728144579124,510.99656035,142.65,142.64,7.0106]
[1728144579422,517.14110607,142.65,142.64,7.0106]
[1728144579821,517.14103537,142.65,142.64,57.0106]
[1728144581525,517.14103537,142.65,142.64,7.0106]
[1728144581840,510.99656035,142.65,142.64,7.0106]
[1728144582530,510.99656035,142.65,142.64,58.16209705]
[1728144582722,510.99656035,142.65,142.64,81.038464]
[1728144583437,510.99656035,142.65,142.64,51.038464]
[1728144583651,510.99656035,142.65,142.64,101.038464]
[1728144585439,510.96647035,142.65,142.64,131.038464]
[1728144592130,510.96647035,142.65,142.64,101.038464]
[1728144593465,510.96647035,142.65,142.64,114.10915545]
[1728144595034,510.96647035,142.65,142.64,144.10915545]
[1728144596254,504.84457035,142.65,142.64,144.10915545]
[1728144596458,441.10062706,142.65,142.64,144.10915545]
[1728144596665,434.82442706,142.65,142.64,144.10915545]
[1728144596954,429.38462706,142.65,142.64,144.10915545]
[1728144599159,424.56292706,142.65,142.64,144.10915545]
[1728144599358,299.81697661,142.65,142.64,159.82975545]
[1728144599537,283.15037661,142.65,142.64,162.94765656]
[1728144599732,269.56217661,142.65,142.64,162.94765656]
[1728144600038,204.55607661,142.65,142.64,162.94765656]
[1728144600249,170.34557661,142.65,142.64,162.94765656]
[1728144600454,15.3719,142.77,142.75,7.0048]
[1728144600648,6.12903214,142.76,142.75,7.90204469]
[1728144600961,6.12903214,142.76,142.75,7.0048]
[1728144601932,6.12903214,142.76,142.74,17.5133]
[1728144602132,6.12903214,142.76,142.73,50.0]
[1728144602133,1.75120185,142.76,142.72,7.20753689]
[1728144602557,6.12529125,142.75,142.72,7.20753689]
[1728144602753,7.006,142.74,142.72,7.20753689]
[1728144602960,15.9807,142.74,142.72,7.20753689]
[1728144605154,31.06928714,142.74,142.72,7.20753689]
[1728144605962,31.06928714,142.74,142.69,74.5279]
[1728144606162,31.06928714,142.74,142.69,24.5279]
[1728144607361,7.0062,142.73,142.69,24.5279]
[1728144609753,1.55356045,142.73,142.69,24.5279]
[1728144612142,8.55976045,142.73,142.69,24.5279]
[1728144613465,6.11163227,142.72,142.69,24.5279]
[1728144613670,8.55976045,142.73,142.69,24.5279]
[1728144613849,6.11158585,142.72,142.69,24.5279]
[1728144614050,8.55976045,142.73,142.69,24.5279]
[1728144614252,6.11036553,142.72,142.69,24.5279]
[1728144614557,8.55976045,142.73,142.69,24.5279]
[1728144614866,6.11099229,142.72,142.69,24.5279]
[1728144615167,8.55976045,142.73,142.69,24.5279]
[1728144615364,6.11089093,142.72,142.69,24.5279]
[1728144615555,8.55976045,142.73,142.69,24.5279]
[1728144615756,6.11125019,142.72,142.69,24.5279]
[1728144615960,8.55976045,142.73,142.69,24.5279]
[1728144616253,6.11155894,142.72,142.69,24.5279]
[1728144618370,8.55976045,142.73,142.69,24.5279]
[1728144618669,6.11330339,142.72,142.69,24.5279]
[1728144618974,8.55976045,142.73,142.69,24.5279]
[1728144619472,6.11344746,142.72,142.69,24.5279]
[1728144619658,8.55976045,142.73,142.69,24.5279]
[1728144619973,6.11422261,142.72,142.69,24.5279]
[1728144620159,8.55976045,142.73,142.69,24.5279]
[1728144620358,6.11489902,142.72,142.69,24.5279]
[1728144620576,8.55976045,142.73,142.69,24.5279]
[1728144620875,6.11523669,142.72,142.69,24.5279]
[1728144621079,8.55976045,142.73,142.69,24.5279]
[1728144621248,6.11505884,142.72,142.69,24.5279]
[1728144621449,6.11505884,142.71,142.69,24.5279]
[1728144621671,8.55976045,142.73,142.69,24.5279]
[1728144621975,6.11532411,142.72,142.69,24.5279]
[1728144622165,6.11532411,142.71,142.69,24.5279]
[1728144622369,8.55976045,142.73,142.69,24.5279]
[1728144622583,6.11625313,142.72,142.69,24.5279]
[1728144622877,6.11625313,142.71,142.69,24.5279]
[1728144623061,8.55976045,142.73,142.69,24.5279]
[1728144623262,6.11622832,142.72,142.69,24.5279]
[1728144623469,6.11622832,142.71,142.69,24.5279]
[1728144623669,8.55976045,142.73,142.69,24.5279]
[1728144623869,6.11738403,142.72,142.69,24.5279]
[1728144624071,6.11738403,142.71,142.69,24.5279]
[1728144624263,8.55976045,142.73,142.69,24.5279]
[1728144624572,6.11849366,142.72,142.69,24.5279]
[1728144624774,6.11849366,142.71,142.69,24.5279]
[1728144624967,8.55976045,142.73,142.69,24.5279]
[1728144625282,6.11786748,142.72,142.69,24.5279]
[1728144625487,6.11786748,142.71,142.69,24.5279]
[1728144625772,15.9807,142.74,142.7,50.0]
[1728144626097,6.11919603,142.73,142.7,50.0]
[1728144626259,6.11919603,142.72,142.71,7.007]
[1728144626466,6.11919603,142.72,142.71,7.90549223]
[1728144626653,6.11919603,142.72,142.71,57.90549223]
[1728144627464,6.11919603,142.72,142.71,57.007]
[1728144627973,15.48,142.77,142.73,7.0059]
[1728144628174,6.12341127,142.76,142.73,7.90371925]
[1728144628373,6.12341127,142.75,142.73,57.90371925]
[1728144628582,6.12341127,142.74,142.73,57.90371925]
[1728144629357,6.12341127,142.74,142.73,57.0059]
[1728144631967,6.12341127,142.74,142.73,7.0059]
[1728144632578,6.12341127,142.74,142.72,67.5162]
[1728144632789,6.1251354,142.73,142.72,67.5162]
[1728144633086,6.1251354,142.73,142.72,17.5162]
[1728144633281,6.1251354,142.73,142.72,24.5229]
[1728144633604,1.7513231,142.76,142.72,24.5229]
[1728144633885,6.12501508,142.75,142.72,24.5229]
[1728144634086,6.12501508,142.74,142.72,24.5229]
[1728144634256,1.7513231,142.76,142.72,24.5229]
[1728144634461,6.12482409,142.75,142.72,24.5229]
[1728144634791,6.12482409,142.74,142.73,57.0062]
[1728144635196,6.12482409,142.74,142.73,7.0062]
[1728144635896,1.75130013,142.76,142.73,7.0062]
[1728144636116,6.12478506,142.74,142.73,7.0062]
[1728144636389,12.24957355,142.74,142.72,24.5227]
[1728144636600,6.12478506,142.74,142.72,24.5227]
[1728144636976,6.12478506,142.74,142.73,57.0062]
[1728144637179,12.24943634,142.74,142.73,57.0062]
[1728144638484,6.12465128,142.74,142.73,7.0062]
[1728144639394,6.12465128,142.74,142.73,57.0062]
[1728144639597,6.12465128,142.74,142.73,7.0062]
[1728144640786,6.12465128,142.74,142.72,17.5162]
[1728144640967,1.75130762,142.76,142.72,24.5227]
[1728144641164,6.12553833,142.75,142.72,24.5227]
[1728144641387,6.12553833,142.74,142.72,24.5227]
[1728144641591,1.75130762,142.76,142.72,24.5227]
[1728144641797,6.12508157,142.75,142.72,17.5162]
[1728144642003,7.0062,142.73,142.69,74.5281]
[1728144642492,6.1247944,142.72,142.69,74.5281]
[1728144642666,1.75168852,142.73,142.69,74.5281]
[1728144642862,6.12479381,142.72,142.69,74.5281]
[1728144643092,1.75168852,142.73,142.69,74.5281]
[1728144643301,6.12472975,142.72,142.69,74.5281]
[1728144643605,7.0058,142.74,142.69,74.5281]
[1728144643771,7.87649801,142.73,142.69,74.5281]
[1728144643972,6.12480756,142.72,142.69,74.5281]
[1728144644173,1.75169045,142.73,142.69,74.5281]
[1728144644395,6.12464271,142.72,142.69,74.5281]
[1728144644570,1.75169045,142.73,142.69,74.5281]
[1728144644908,6.12463991,142.72,142.69,24.5281]
[1728144645080,1.75169045,142.73,142.69,24.5281]
[1728144645284,6.12463819,142.72,142.69,24.5281]
[1728144645475,1.75169045,142.73,142.69,24.5281]
[1728144645676,6.12465908,142.72,142.69,24.5281]
[1728144645997,1.75169045,142.73,142.69,24.5281]
[1728144646178,6.12477249,142.72,142.69,24.5281]
[1728144646378,1.75169045,142.73,142.69,24.5281]
[1728144646690,6.12497649,142.72,142.69,24.5281]
[1728144646878,1.75169045,142.73,142.69,24.5281]
[1728144647076,6.12387657,142.72,142.69,67.5203]
[1728144647381,17.28459045,142.73,142.69,67.5203]
[1728144647582,6.123681,142.72,142.69,67.5203]
[1728144647794,24.29089045,142.73,142.69,67.5203]
[1728144648109,6.12406375,142.72,142.69,17.5203]
[1728144648394,24.29089045,142.73,142.69,17.5203]
[1728144648595,6.12467929,142.72,142.69,17.5203]
[1728144648801,24.29089045,142.73,142.69,17.5203]
[1728144648999,6.124676,142.72,142.69,17.5203]
[1728144649200,24.29089045,142.73,142.69,17.5203]
[1728144649372,6.12492113,142.72,142.69,17.5203]
[1728144649576,24.29089045,142.73,142.69,17.5203]
[1728144649774,6.12545993,142.72,142.69,17.5203]
[1728144649976,24.29089045,142.73,142.69,17.5203]
[1728144650204,6.12521781,142.72,142.69,17.5203]
[1728144650499,24.29089045,142.73,142.69,17.5203]
[1728144650500,6.12521781,142.71,142.69,17.5203]
[1728144650679,24.29089045,142.73,142.69,17.5203]
[1728144650880,6.1250697,142.72,142.69,17.5203]
[1728144651112,24.29089045,142.73,142.69,17.5203]
[1728144651392,6.12518816,142.72,142.69,17.5203]
[1728144651590,6.12518816,142.71,142.69,17.5203]
[1728144651795,24.29089045,142.73,142.69,17.5203]
[1728144651991,24.29089045,142.73,142.68,57.0083]
[1728144651992,6.1251636,142.72,142.68,7.0083]
[1728144652185,14.88435879,142.71,142.67,7.0091]
[1728144652388,8.75919519,142.71,142.67,7.0091]
[1728144653088,6.12458844,142.7,142.67,7.0091]
[1728144653284,7.0072,142.71,142.67,7.0091]
[1728144653495,6.1244147,142.7,142.67,7.0091]
[1728144653698,7.0072,142.71,142.67,7.0091]
[1728144653998,6.12437424,142.7,142.67,7.0091]
[1728144654200,8.75878493,142.72,142.67,7.0091]
[1728144654375,6.12436355,142.71,142.67,7.0091]
[1728144654576,6.12436355,142.7,142.67,7.0091]
[1728144654799,1.55331395,142.71,142.67,7.0091]
[1728144655105,6.12404279,142.7,142.67,7.0091]
[1728144655275,1.55331395,142.71,142.67,7.0091]
[1728144655475,1.55331395,142.71,142.67,57.0091]
[1728144657597,1.55331395,142.71,142.67,7.0091]
[1728144664092,1.55331395,142.71,142.67,57.0091]
[1728144664616,8.56081395,142.71,142.67,50.0]
[1728144664793,7.0075,142.71,142.67,50.0]
[1728144665113,7.0075,142.71,142.67,57.0091]
[1728144667911,8.75878555,142.72,142.67,57.0091]
[1728144668113,6.12613968,142.71,142.67,57.0091]
[1728144668321,1.75200998,142.7,142.67,7.0091]
[1728144668783,1.75201396,142.71,142.67,7.0091]
[1728144669712,1.75201396,142.71,142.65,85.0497]
[1728144670011,7.0073,142.71,142.65,85.0497]
[1728144670211,1.75210641,142.7,142.65,85.0497]
[1728144670589,1.75210641,142.7,142.66,24.5328]
[1728144671114,7.0077,142.7,142.66,24.5328]
[1728144671317,1.75216676,142.69,142.65,50.0]
[1728144671488,7.0088,142.68,142.62,33.8855]
[1728144671687,7.0083,142.69,142.64,7.0104]
[1728144671993,1.75234782,142.68,142.64,7.0104]
[1728144675519,1.75234782,142.68,142.66,7.0094]
[1728144675696,1.75234926,142.71,142.66,7.0094]
[1728144676016,15.5329,142.73,142.69,7.0081]
[1728144676017,6.12325132,142.7,142.69,7.0081]
[1728144676399,6.12325132,142.7,142.69,57.90718418]
[1728144676596,15.5329,142.73,142.69,57.90718418]
[1728144676597,15.5329,142.73,142.7,7.0073]
[1728144676822,6.12458776,142.72,142.7,7.0073]
[1728144677114,6.12458776,142.71,142.7,7.0073]
[1728144677316,6.12458776,142.71,142.69,57.0081]
[1728144677495,15.5329,142.73,142.69,57.0081]
[1728144677819,6.12515563,142.72,142.69,57.0081]
[1728144678010,17.28466807,142.73,142.69,7.0081]
[1728144678205,6.1251645,142.72,142.69,7.0081]
[1728144678409,6.1251645,142.71,142.69,7.0081]
[1728144678711,15.5329,142.73,142.69,7.0081]
[1728144678903,6.12533221,142.72,142.69,7.0081]
[1728144679219,1.75177311,142.72,142.69,7.0081]
[1728144679791,1.75177311,142.72,142.68,74.5299]
[1728144680322,1.75177311,142.72,142.68,24.5299]
[1728144683497,1.75177311,142.72,142.67,50.0]
[1728144683698,7.0072,142.71,142.67,57.0091]
[1728144684401,7.0072,142.71,142.67,7.0091]
[1728144685619,8.75857311,142.72,142.67,7.0091]
[1728144686721,8.75857311,142.72,142.67,57.0091]
[1728144687719,8.75857311,142.72,142.67,7.0091]
[1728144692030,15.5329,142.73,142.68,57.0084]
[1728144692240,1.75185149,142.72,142.68,57.0084]
[1728144693930,1.75185149,142.72,142.68,7.0084]
[1728144694156,1.75185149,142.72,142.68,57.0084]
[1728144696019,8.75865149,142.72,142.68,57.0084]
[1728144696337,8.75865149,142.72,142.68,7.0084]
[1728144701538,8.75865149,142.72,142.68,57.0084]
[1728144705643,8.75865149,142.72,142.68,7.0084]
[1728144708445,8.75865149,142.72,142.67,67.5224]
[1728144708654,1.75185149,142.72,142.67,67.5224]
[1728144708859,1.75185149,142.72,142.67,17.5224]
[1728144710542,1.75185149,142.72,142.67,24.5315]
[1728144710942,1.75185149,142.72,142.67,74.5315]
[1728144712060,1.75185149,142.72,142.67,24.5315]
[1728144713065,7.0074,142.71,142.67,24.5315]
[1728144717243,7.0074,142.71,142.67,74.5315]
[1728144719566,15.5329,142.73,142.69,50.0]
[1728144720971,15.5329,142.73,142.72,7.0067]
[1728144721143,18.18314059,142.77,142.73,7.0061]
[1728144721340,18.18314059,142.77,142.72,7.0066]
[1728144721544,18.18314059,142.77,142.72,57.0066]
[1728144722471,1.75164059,142.77,142.72,57.0066]
[1728144722657,23.776884,142.79,142.72,57.0066]
[1728144722854,1.75132878,142.78,142.72,57.0066]
[1728144724090,7.0043,142.77,142.72,57.0066]
[1728144725489,7.0052,142.75,142.71,17.5174]
[1728144725681,8.75733248,142.74,142.7,50.0]
[1728144725883,8.75733248,142.74,142.69,57.0081]
[1728144726183,1.75153248,142.74,142.68,17.5212]
[1728144726375,7.0072,142.71,142.68,17.5212]
[1728144727174,23.776884,142.74,142.68,17.5212]
[1728144727471,1.75194521,142.73,142.68,17.5212]
[1728144727685,23.776884,142.74,142.68,17.5212]
[1728144727870,1.7519939,142.73,142.68,17.5212]
[1728144731089,7.0072,142.71,142.68,17.5212]
[1728144731304,7.0072,142.71,142.67,57.009]
[1728144731305,7.0072,142.71,142.67,50.0]
[1728144731595,7.0072,142.71,142.66,57.0096]
[1728144733491,7.0072,142.71,142.66,7.0096]
[1728144734799,7.0072,142.71,142.66,57.0096]
[1728144738904,7.0072,142.71,142.67,50.0]
[1728144739878,7.0072,142.71,142.66,57.0096]
[1728144740078,6.13182052,142.7,142.66,57.0096]
[1728144740378,7.0072,142.71,142.66,57.0096]
[1728144740579,6.13184432,142.7,142.66,57.0096]
[1728144740800,7.0072,142.71,142.66,57.0096]
[1728144741002,6.13195083,142.7,142.67,50.0]
[1728144741197,7.0072,142.71,142.67,50.0]
[1728144741386,6.13188872,142.7,142.67,50.0]
[1728144741586,7.0072,142.71,142.67,50.0]
[1728144741789,6.13196549,142.7,142.67,50.0]
[1728144742089,7.0072,142.71,142.66,57.0096]
[1728144742401,6.13215589,142.7,142.66,57.0096]
[1728144742604,7.0072,142.71,142.66,57.0096]
[1728144742897,6.13204359,142.7,142.66,57.0096]
[1728144743083,7.0072,142.71,142.66,57.0096]
[1728144743283,6.1321036,142.7,142.66,57.0096]
[1728144743583,7.0072,142.71,142.66,57.0096]
[1728144743905,6.13207381,142.7,142.66,57.0096]
[1728144744081,7.0072,142.71,142.67,50.0]
[1728144744404,6.13207168,142.7,142.67,50.0]
[1728144744590,7.0072,142.71,142.67,50.0]
[1728144744794,6.13213212,142.7,142.67,50.0]
[1728144744987,7.0072,142.71,142.67,50.0]
[1728144745186,6.13213468,142.7,142.67,50.0]
[1728144745396,7.0072,142.71,142.67,50.0]
[1728144745899,7.0072,142.71,142.66,7.0096]
[1728144745900,7.88415285,142.7,142.66,7.0096]
[1728144746111,1.75198014,142.7,142.65,67.5248]
[1728144746331,1.75198014,142.7,142.65,17.5248]
[1728144746332,6.13186032,142.69,142.65,17.5248]
[1728144746614,6.13186032,142.68,142.65,17.5248]
[1728144746781,1.75198014,142.7,142.65,17.5248]
[1728144747109,6.13165153,142.69,142.65,17.5248]
[1728144747292,1.75198014,142.7,142.65,17.5248]
[1728144747495,6.13115471,142.69,142.65,17.5248]
[1728144747708,1.75198014,142.7,142.65,17.5248]
[1728144747910,6.13112041,142.69,142.65,17.5248]
[1728144748087,1.75198014,142.7,142.65,17.5248]
[1728144748283,6.13067812,142.69,142.65,17.5248]
[1728144748511,1.75198014,142.7,142.65,67.5248]
[1728144749112,6.13072106,142.69,142.65,67.5248]
[1728144749308,1.75198014,142.7,142.65,67.5248]
[1728144749688,13.1387932,142.69,142.65,67.5248]
[1728144749910,7.0085,142.69,142.65,67.5248]
[1728144750505,7.0085,142.69,142.65,74.5349]
[1728144750690,1.75224894,142.68,142.65,67.5248]
[1728144750889,1.75224894,142.68,142.65,17.5248]
[1728144751111,1.75224894,142.68,142.63,50.0]
[1728144751315,1.75231721,142.7,142.63,57.0106]
[1728144751506,7.0086,142.68,142.63,57.0106]
[1728144751816,8.76091593,142.68,142.64,57.0106]
[1728144752107,7.0086,142.68,142.64,57.0106]
[1728144752778,7.0086,142.68,142.65,50.0]
[1728144753507,1.75231259,142.67,142.65,50.0]
[1728144753690,1.75239924,142.7,142.65,50.0]
[1728144753894,6.12753963,142.69,142.65,50.0]
[1728144754213,7.87993977,142.68,142.65,50.0]
[1728144754420,1.75240014,142.68,142.65,50.0]
[1728144754592,1.75238835,142.7,142.65,50.0]
[1728144754788,6.12675491,142.69,142.65,50.0]
[1728144755083,7.87915163,142.68,142.65,50.0]
[1728144755283,1.75239672,142.68,142.65,50.0]
[1728144755495,1.75238784,142.7,142.65,50.0]
[1728144755712,6.12603977,142.69,142.65,50.0]
[1728144756009,7.87842774,142.68,142.65,50.0]
[1728144756213,1.75238797,142.68,142.65,50.0]
[1728144756409,1.75238865,142.7,142.65,50.0]
[1728144756610,6.12537995,142.69,142.65,50.0]
[1728144756808,1.75238865,142.68,142.65,50.0]
[1728144757186,1.75238844,142.7,142.65,50.0]
[1728144757404,7.0088,142.68,142.65,50.0]
[1728144757706,1.75239289,142.67,142.65,50.0]
[1728144759501,7.0088,142.68,142.65,50.0]
[1728144760009,1.7524306,142.7,142.65,50.0]
[1728144760192,6.12352019,142.69,142.68,50.0]
[1728144761290,6.12352019,142.69,142.67,50.0]
[1728144761489,8.7601306,142.7,142.67,50.0]
[1728144761696,6.12268609,142.69,142.67,50.0]
[1728144761898,8.7601306,142.7,142.67,50.0]
[1728144762098,6.12299242,142.69,142.67,50.0]
[1728144762302,8.7601306,142.7,142.67,50.0]
[1728144762517,6.12282078,142.69,142.67,50.0]
[1728144762815,8.7601306,142.7,142.67,50.0]
[1728144763009,6.12281461,142.69,142.67,50.0]
[1728144763212,8.7601306,142.7,142.67,50.0]
[1728144763402,6.12256494,142.69,142.67,50.0]
[1728144763606,8.7601306,142.7,142.67,50.0]
[1728144764618,6.12243269,142.69,142.67,50.0]
[1728144764798,8.7601306,142.7,142.67,50.0]
[1728144765711,6.12235713,142.69,142.67,50.0]
[1728144766016,8.7608493,142.68,142.65,50.0]
[1728144766400,7.0083,142.69,142.65,50.0]
[1728144766715,7.0083,142.69,142.66,50.0]
[1728144767300,8.76094351,142.68,142.66,50.0]
[1728144767806,8.76094351,142.68,142.65,50.0]
[1728144770323,7.0087,142.68,142.65,50.0]
[1728144771995,1.75236577,142.7,142.65,50.0]
[1728144772200,6.12543573,142.69,142.65,50.0]
[1728144772423,1.75236577,142.7,142.65,50.0]
[1728144772626,16.5906,142.71,142.65,50.0]
[1728144772627,7.87802844,142.69,142.65,50.0]
[1728144772818,1.75226025,142.69,142.65,50.0]
[1728144773014,1.75226185,142.7,142.65,50.0]
[1728144773206,6.12579442,142.69,142.65,50.0]
[1728144773408,1.75230558,142.68,142.65,50.0]
[1728144773621,1.75230553,142.7,142.65,50.0]
[1728144773825,6.12593691,142.69,142.65,50.0]
[1728144774130,1.7523046,142.68,142.65,50.0]
[1728144774323,1.75230466,142.7,142.65,50.0]
[1728144774515,6.12603211,142.69,142.65,50.0]
[1728144774714,1.75230399,142.68,142.65,50.0]
[1728144775028,7.0085,142.69,142.65,50.0]
[1728144775222,1.75232151,142.68,142.65,50.0]
[1728144776127,8.76102151,142.68,142.65,50.0]
[1728144776312,1.75238741,142.67,142.65,50.0]
[1728144776834,8.76168741,142.67,142.63,50.0]
[1728144777125,7.0088,142.68,142.65,50.0]
[1728144777331,6.13280653,142.67,142.65,50.0]
[1728144777516,7.0088,142.68,142.65,50.0]
[1728144777711,6.13285311,142.67,142.65,50.0]
[1728144777930,7.0088,142.68,142.65,50.0]
[1728144778130,6.13285251,142.67,142.65,50.0]
[1728144778429,1.75236796,142.67,142.63,50.0]
[1728144778730,7.0096,142.67,142.63,50.0]
[1728144778924,1.75260202,142.66,142.63,50.0]
[1728144779228,1.75260202,142.66,142.62,57.0116]
[1728144782836,17.27390202,142.66,142.62,50.0]
[1728144783136,17.27390202,142.66,142.6,50.0]
[1728144783328,6.13040801,142.65,142.62,50.0]
[1728144783519,17.27390202,142.66,142.62,50.0]
[1728144783926,6.13046136,142.65,142.62,50.0]
[1728144784269,17.27390202,142.66,142.62,50.0]
[1728144785541,17.27390202,142.66,142.63,50.0]
[1728144787460,24.28350202,142.66,142.63,50.0]
[1728144788142,17.27390202,142.66,142.63,50.0]
[1728144788345,15.5213,142.66,142.63,50.0]
[1728144788534,17.27389106,142.66,142.63,50.0]
[1728144789146,24.28349106,142.66,142.63,50.0]
[1728144790138,24.28349106,142.66,142.62,50.0]
[1728144791660,17.27389106,142.66,142.6,74.5436]
[1728144791868,6.12976008,142.65,142.6,74.5436]
[1728144792040,1.75290257,142.64,142.6,74.5436]
[1728144792363,1.75289053,142.65,142.61,50.0]
[1728144795368,7.0108,142.64,142.6,67.531]
[1728144795665,1.75307344,142.63,142.6,67.531]
[1728144795863,7.0117,142.62,142.58,50.0]
[1728144796040,1.75329709,142.61,142.58,50.0]
[1728144796237,7.0117,142.62,142.58,57.0135]
[1728144796238,1.75324855,142.62,142.58,57.0135]
[1728144796442,1.75324855,142.62,142.59,50.0]
[1728144796637,1.75324855,142.62,142.59,57.013]
[1728144798763,1.75324855,142.62,142.59,50.0]
[1728144798974,8.76484855,142.62,142.59,50.0]
[1728144799650,8.76484855,142.62,142.58,57.0135]
[1728144800276,8.76484855,142.62,142.58,50.0]
[1728144801681,7.0122,142.61,142.58,50.0]
[1728144801852,1.75331427,142.6,142.57,74.5488]
[1728144803275,15.5213,142.63,142.57,74.5488]
[1728144803276,1.7533215,142.62,142.57,67.5349]
[1728144804066,1.7533215,142.62,142.57,17.5349]
[1728144804571,23.776884,142.61,142.56,50.0]
[1728144804750,1.75352415,142.6,142.56,50.0]
[1728144806370,1.75352415,142.6,142.55,57.015]
[1728144806574,7.0131,142.59,142.55,56.515]
[1728144806803,1.75357574,142.58,142.55,56.515]
[1728144806975,8.76617574,142.6,142.55,56.515]
[1728144807175,8.76617574,142.6,142.56,50.0]
[1728144807870,1.75354187,142.59,142.56,50.0]
[1728144808294,1.75354187,142.59,142.56,7.0145]
[1728144811180,17.97014187,142.59,142.55,57.015]
[1728144811384,1.75360946,142.58,142.55,57.015]
[1728144813204,16.2166,142.59,142.57,57.014]
[1728144814911,23.2286,142.62,142.57,57.014]
[1728144815206,1.753321,142.61,142.57,57.014]
[1728144815815,1.753321,142.61,142.58,50.0]
[1728144817001,23.2286,142.62,142.6,50.0]
[1728144817002,16.2166,142.62,142.6,50.0]
[1728144819009,16.2166,142.62,142.59,7.013]
[1728144819010,16.2166,142.62,142.59,57.013]
[1728144821626,1.75308165,142.61,142.59,50.0]
[1728144822114,1.75308165,142.61,142.58,74.5466]
[1728144823911,1.75308165,142.61,142.58,50.0]
[1728144824499,1.75308165,142.61,142.58,57.0135]
[1728144829837,1.75319187,142.64,142.6,57.0125]
[1728144830338,16.6281,142.65,142.62,57.0116]
[1728144830634,16.6281,142.65,142.63,7.011]
[1728144830838,8.76222978,142.67,142.63,57.011]
[1728144831149,6.11823815,142.66,142.65,50.0]
[1728144831449,1.75266405,142.68,142.65,50.0]
[1728144831615,1.75266405,142.68,142.63,74.5381]
[1728144831957,6.1189359,142.67,142.63,74.5381]
[1728144832234,1.75251559,142.66,142.61,50.0]
[1728144832538,1.75251559,142.66,142.61,57.012]
[1728144832737,1.75251559,142.66,142.62,50.0]
[1728144833236,1.75282586,142.67,142.62,50.0]
[1728144833535,6.11874696,142.66,142.62,50.0]
[1728144833731,1.75282455,142.65,142.62,50.0]
[1728144833914,1.75282455,142.67,142.62,50.0]
[1728144834117,6.12030884,142.66,142.62,50.0]
[1728144834420,1.75281715,142.65,142.62,50.0]
[1728144834623,1.7527379,142.68,142.62,50.0]
[1728144834838,6.12111394,142.67,142.62,50.0]
[1728144835010,7.8738511,142.66,142.62,50.0]
[1728144835210,8.76243716,142.66,142.62,50.0]
[1728144836136,1.75273716,142.66,142.63,50.0]
[1728144836321,6.12232089,142.65,142.63,50.0]
[1728144836516,1.75264022,142.66,142.63,50.0]
[1728144836734,6.1223959,142.65,142.63,50.0]
[1728144836932,1.75264022,142.66,142.63,50.0]
[1728144837133,6.12232835,142.65,142.63,50.0]
[1728144837430,1.75264022,142.66,142.63,50.0]
[1728144837827,6.1233268,142.65,142.63,50.0]
[1728144838014,1.75264022,142.66,142.63,50.0]
[1728144838215,6.12338229,142.65,142.63,50.0]
[1728144838511,1.75264022,142.66,142.63,50.0]
[1728144838712,6.12383792,142.65,142.63,50.0]
[1728144838913,1.75264022,142.66,142.63,50.0]
[1728144839142,6.12383987,142.65,142.62,7.0115]
[1728144839331,1.75264022,142.66,142.62,57.0115]
[1728144839636,6.12420743,142.65,142.62,57.0115]
[1728144839946,1.75264022,142.66,142.62,57.0115]
[1728144840116,6.12424054,142.65,142.62,57.0115]
[1728144840318,1.75267618,142.68,142.63,57.011]
[1728144840533,6.12470017,142.67,142.63,57.011]
[1728144840736,6.12470017,142.66,142.63,57.011]
[1728144840917,6.12470017,142.65,142.63,57.011]
[1728144841117,1.75257445,142.68,142.63,57.011]
[1728144841430,6.12533341,142.67,142.64,50.0]
[1728144841637,7.87791151,142.66,142.64,50.0]
[1728144841820,6.12533341,142.65,142.62,67.5284]
[1728144842136,1.75272602,142.68,142.62,67.5284]
[1728144842344,6.12496058,142.67,142.62,67.5284]